Cogmind - Beta 15 @@@ ROGUE MODE // 2025.05.23 @ 15:15:20 // Winter2022/Polymind Player: Demo Result: Destroyed by YI-UF0 with YI-UF0's Doublenader Performance ------------- Evolutions (1) 500 Regions Visited (3) 600 Robots Destroyed (5) 25 Value Destroyed (74) 74 Prototype IDs (0) 0 Alien Tech Used (0) 0 Bonus (1392) 1392 TOTAL SCORE: 1851 Bonus ------- Polymind Skill 1170 Pacifist 200 Follower Combat Kills 25 Friendly Fire -3 Cogmind --------- Core Integrity 0/400 Matter 0/0 Energy 200/200 System Corruption 0% Temperature Cool (0) Movement Walking (120) Location -9/Mines Parts ------- > --- POWER (1) -------- Ion Engine > --- PROPULSION (2) --- Aluminum Leg Aluminum Leg > --- UTILITY (1) ------ Heat Sink > --- WEAPON (1) ------- Small Laser > --- INVENTORY (1) ---- (None) Peak State ------------ > --- POWER ------------ Light Nuclear Core > --- PROPULSION ------- Aluminum Leg Aluminum Leg > --- UTILITY ---------- Improved Heat Sink > --- WEAPON ----------- Particle Gun > --- INVENTORY -------- (None) [Rating: 10] Favorites ----------- Power Ion Engine Engine Ion Engine Power Core Light Nuclear Core Propulsion Aluminum Leg Treads Light Treads Leg Aluminum Leg Utility Improved Heat Sink Device Improved Heat Sink Storage Medium Storage Unit Processor Transport Network Coupler Weapon Particle Gun Energy Gun Particle Gun Build | -11 -10 -9 -9 ------- Run | Yrd Mat Mat Min Slots Evolved . | . . . . Power . | . . . . Propulsion . | . . . . Utility . | . . . . Weapon . | . . . . Parts Attached . | . . . . Power . | . . . . Engine . | . . . . Core . | . . . . Reactor . | . . . . Propulsion . | . . . . Treads . | . . . . Leg . | . . . . Wheel . | . . . . Hover . | . . . . Flight . | . . . . Utility . | . . . . Device . | . . . . Storage . | . . . . Processor . | . . . . Hackware . | . . . . Protection . | . . . . Artifact . | . . . . Weapon . | . . . . Energy Gun . | . . . . Energy Cannon . | . . . . Ballistic Gun . | . . . . Ballistic Cannon . | . . . . Launcher . | . . . . Special Weapon . | . . . . Impact Weapon . | . . . . Slashing Weapon . | . . . . Piercing Weapon . | . . . . Special Melee Weapon . | . . . . Unidentified Prototypes . | . . . . Parts Lost 10 | . . . 10 Power 2 | . . . 2 Propulsion 4 | . . . 4 Utility 2 | . . . 2 Weapon 2 | . . . 2 Highest Loss Streak 5 | . . . 5 To Critical Strikes . | . . . . Average Backups . | . . . . Power . | . . . . Propulsion . | . . . . Utility . | . . . . Weapon . | . . . . Tool/Special . | . . . . Unused Backups . | . . . . Power . | . . . . Propulsion . | . . . . Utility . | . . . . Weapon . | . . . . Tool/Special . | . . . . Average Slot Usage (%) 88 | . 71 100 88 Engine 7 | . 11 16 6 Core 8 | . . . 10 Treads 13 | . 23 33 9 Leg 17 | . . . 22 Device 16 | . 11 16 16 Storage 6 | . 11 16 4 Processor 6 | . 11 16 4 Energy Gun 9 | . . . 12 Peak Build Rating 10 | . 7 7 10 Average Rating 7 | . 5 7 7 On Entrance 3 | . . 7 7 Naked Turns 13 | . 12 . 1 Heaviest Build 15 | . 15 15 15 Greatest Support 46 | 3 46 46 46 Greatest Overweight (x) . | . . . . Average Overweight (x) . | . . . . Largest Inventory Capacity 6 | . 6 6 6 Average Capacity 2 | . 4 6 2 Most Carried 1 | . 1 1 1 Average Carried . | . . 1 . Final Capacity 6 | . 6 6 1 Final Carried 1 | . 1 1 . Class Distribution -------------------- 57% | Grunt 40% | Hauler Dominant Class ---------------- Hauler | -10/Materials Hauler | -9/Materials Grunt | -9/Mines Resources | -11 -10 -9 -9 ----------- Run | Yrd Mat Mat Min Matter Collected . | . . . . Remotely . | . . . . Salvage Created 49 | . . . 49 Parts 5 | . . . 5 Haulers Intercepted . | . . . . Recyclers Shooed . | . . . . Parts Field Recycled . | . . . . Retrieved Matter . | . . . . Parts Self-Destructed . | . . . . Prevented . | . . . . Kills | -11 -10 -9 -9 ------- Run | Yrd Mat Mat Min Combat Hostiles Destroyed 5 | . . . 5 Melee 1 | . . . 1 Guns 4 | . . . 4 Classes Destroyed 2 | . . . 2 Swarmer 4 | . . . 4 Grunt 1 | . . . 1 Best Kill Streak 2 | . . . 2 Combat Bots Only 2 | . . . 2 Max Kills in Single Turn 1 | . . . 1 Gunslinging . | . . . . Exploded . | . . . . Melee 1 | . . . 1 Uniques/NPCs Destroyed . | . . . . Combat | -11 -10 -9 -9 -------- Run | Yrd Mat Mat Min Hostile Shots Fired 120 | . . . 120 Missed 26 | . . . 26 Hits 94 | . . . 94 Projectile 94 | . . . 94 AOE 2 | . . . 2 Damage Taken 1109 | . . . 1109 Core 410 | . . . 410 Absorbed by Shields . | . . . . Core Remaining (%) 100 | 100 100 . . Volleys Fired 20 | . . . 20 Largest 1 | . . . 1 Hottest 65 | . . . 65 Shots Fired 20 | . . . 20 Gun 20 | . . . 20 Cannon . | . . . . Launcher . | . . . . Special . | . . . . Kinetic . | . . . . Thermal 20 | . . . 20 Explosive . | . . . . Electromagnetic . | . . . . Robot Hit Streak 2 | . . . 2 Robot Miss Streak 5 | . . . 5 Penetration Max . | . . . . Secondary Targets . | . . . . Shots Hit Robots 8 | . . . 8 Core Hits 15 | . . . 15 Critical Kills . | . . . . Critical Parts Destroyed . | . . . . Critical Strikes 1 | . . . 1 Burn 1 | . . . 1 Melee Attacks . | . . . . Impact . | . . . . Slashing . | . . . . Piercing . | . . . . Sneak Attacks . | . . . . Combat Hostiles . | . . . . Follow-up Attacks . | . . . . Damage Inflicted 294 | . . . 294 Guns 117 | . . . 117 Cannons . | . . . . Explosions . | . . . . Melee . | . . . . Ramming 177 | . . . 177 Kinetic . | . . . . Thermal 117 | . . . 117 Explosive . | . . . . Electromagnetic . | . . . . Impact . | . . . . Slashing . | . . . . Piercing . | . . . . Highest Corruption . | . . . . Average Corruption . | . . . . Corruption Purged . | . . . . Corruption Blocked . | . . . . Overload Shots . | . . . . Overflow Damage . | . . . . Projectiles . | . . . . Explosions . | . . . . Melee . | . . . . Knockbacks 2 | . . . 2 Impact 2 | . . . 2 Kinetic . | . . . . Secondary . | . . . . Self-Inflicted Damage 7 | . . . 7 Shots . | . . . . Rammed 5 | . . . 5 Targets Rammed 125 | . . . 125 Kicked 119 | . . . 119 Crushed 1 | . . . 1 Highest Temperature 33 | . . . 33 Average Temperature 17 | . . . 17 Received Heat Transfer 450 | . . . 450 Siege Activations . | . . . . Martial Activations . | . . . . Shielding Activations . | . . . . Robots Disrupted . | . . . . Combat Hostiles . | . . . . Robots Corrupted . | . . . . Combat Hostiles . | . . . . Parts Fried . | . . . . Impact Corruptions . | . . . . Robots Melted . | . . . . Combat Hostiles . | . . . . Parts Melted . | . . . . Heat Transferred 370 | . . . 370 Parts Sabotaged . | . . . . Parts Stolen . | . . . . Parts Stripped . | . . . . Power Chain Reactions . | . . . . Alert | -11 -10 -9 -9 ------- Run | Yrd Mat Mat Min Maximum Alert Level . | . . . . Low Security (%) 100 | 100 100 100 100 Level 1 . | . . . . Level 2 . | . . . . Level 3 . | . . . . Level 4 . | . . . . Level 5 . | . . . . High Security . | . . . . Max Security . | . . . . Peak Influence 110 | . . . 110 Initial . | . . . . Average 20 | . . . 26 Influence Increases 192 | . . . 192 Destroy 0b10 Robot/C 120 | . . . 120 Destroy Leader 10 | . . . 10 Allied During Kill 2 | . . . 2 Lose Combat Pursuer 60 | . . . 60 Influence Decreases 192 | . . . 192 Time Decay 130 | . . . 130 Lost Part 50 | . . . 50 Lost Ally 5 | . . . 5 Miscellaneous 7 | . . . 7 Squads Dispatched 1 | . 1 . . Investigation . | . . . . Extermination . | . . . . Reinforcement 1 | . 1 . . Assault . | . . . . Garrison . | . . . . Intercept . | . . . . Searches Triggered . | . . . . Construction Impeded . | . . . . Haulers Reinforced . | . . . . Active Scanning Responses . | . . . . Cargo Convoy Interrupts . | . . . . Stealth | -11 -10 -9 -9 --------- Run | Yrd Mat Mat Min Distress Signals . | . . . . Communications Jammed . | . . . . Distress Signals . | . . . . Times Spotted 16 | . 1 . 15 Peak Tracking Total 4 | . 1 . 4 Tactical Retreats 2 | . . . 2 Traps | -11 -10 -9 -9 ------- Run | Yrd Mat Mat Min Traps Triggered . | . . . . Indirectly . | . . . . Trap Hack Attempts . | . . . . Triggered . | . . . . Disarmed . | . . . . Reprogrammed . | . . . . Reused . | . . . . Traps Extracted . | . . . . Installed . | . . . . Triggered . | . . . . Machines | -11 -10 -9 -9 ---------- Run | Yrd Mat Mat Min Machines Disabled . | . . . . Max in Single Turn . | . . . . Machines Repaired . | . . . . Machines Dismantled . | . . . . Machines Sabotaged . | . . . . Overloaded Fab Kills . | . . . . Hacking | -11 -10 -9 -9 --------- Run | Yrd Mat Mat Min Machines Accessed . | . . . . Terminals . | . . . . Fabricators . | . . . . Repair Stations . | . . . . Recycling Units . | . . . . Scanalyzers . | . . . . Garrison Access . | . . . . Total Hacks . | . . . . Successful . | . . . . Failed . | . . . . Catastrophic . | . . . . Database Lockouts . | . . . . Manual . | . . . . Terminals . | . . . . Fabricators . | . . . . Repair Stations . | . . . . Recycling Units . | . . . . Scanalyzers . | . . . . Garrison Access . | . . . . Terminal Hacks . | . . . . Fabricator Hacks . | . . . . Repair Station Hacks . | . . . . Recycling Unit Hacks . | . . . . Scanalyzer . | . . . . Garrison Access Hacks . | . . . . Unauthorized Hacks . | . . . . Terminals . | . . . . Fabricators . | . . . . Repair Stations . | . . . . Recycling Units . | . . . . Scanalyzers . | . . . . Garrison Access . | . . . . Data Cores Recovered . | . . . . Used . | . . . . Hacking Detections . | . . . . Full Trace Events . | . . . . Feedback Events . | . . . . Feedback Blocked . | . . . . Robot Schematics Acquired . | . . . . Robots Built . | . . . . Authchips . | . . . . Time . | . . . . Total Robot Build Rating . | . . . . Part Schematics Acquired . | . . . . Parts Built . | . . . . Authchips . | . . . . Time . | . . . . Total Part Build Rating . | . . . . Parts Repaired . | . . . . Time . | . . . . Parts Recycled . | . . . . Recycled Matter . | . . . . Retrieved Matter . | . . . . Retrieved Components . | . . . . Parts Scanalyzed . | . . . . Part Schematics Acquired . | . . . . Parts Damaged . | . . . . Bothacking | -11 -10 -9 -9 ------------ Run | Yrd Mat Mat Min Used RIF Installer . | . . . . Robots Hacked 4 | . 1 . 3 Non-combat 1 | . 1 . . Combat 3 | . . . 3 Robot Hacks Applied 4 | . 1 . 3 locate_stockpiles 1 | . 1 . . find_shortcuts 3 | . . . 3 Relay Couplers Released . | . . . . Fabnet Peak Effective % . | . . . . Robots Rewired . | . . . . Allies Hacked . | . . . . Hacks Repelled . | . . . . Allies | -11 -10 -9 -9 -------- Run | Yrd Mat Mat Min Total Allies 1 | . . . 1 Largest Group 1 | . . . 1 Highest-Rated Group 31 | . . . 31 Highest-Rated Ally 31 | . . . 31 Total Orders . | . . . . Ally Attacks 6 | . . . 6 Total Damage 83 | . . . 83 Kills 1 | . . . 1 Allies Corrupted . | . . . . Allies Melted . | . . . . Intel | -11 -10 -9 -9 ------- Run | Yrd Mat Mat Min Active Infowar (turns) 271 | . 48 82 141 T.N.C. 271 | . 48 82 141 Robot Analysis Total 3 | . 1 . 2 Derelict Logs Recovered 1 | . . . 1 Drone Launches . | . . . . Drone Recoveries . | . . . . Exploration | -11 -10 -9 -9 ------------- Run | Yrd Mat Mat Min Turns Passed 671 | 9 60 82 520 Spaces Moved 344 | 18 54 52 220 Core 42 | 18 23 . 1 Treads 169 | . 31 52 86 Legs 133 | . . . 133 Wheels . | . . . . Hover . | . . . . Flight . | . . . . Fastest Speed 50 | 50 50 160 50 Average Speed 131 | 50 113 160 135 Slowest Speed 160 | 50 160 160 160 Overloaded Moves . | . . . . Propulsion Burnouts . | . . . . Robots Hopped . | . . . . Potential Cave-ins . | . . . . Cave-ins Triggered . | . . . . Exploration Rate (%) 26 | 3 19 10 74 Regions Visited 3 Branch Regions 1 Pre-discovered Areas . | . . . . Known Exits Taken . | . . . . Unknown Exits Taken 3 | 1 1 1 . Scrap Searched . | . . . . Spaces Dug . | . . . . Terrain Destroyed . | . . . . Melee . | . . . . Projectile . | . . . . AOE . | . . . . Terrain Rammed . | . . . . Walls Destroyed . | . . . . Machines Disabled . | . . . . Actions | -11 -10 -9 -9 --------- Run | Yrd Mat Mat Min Total 518 | 17 53 51 397 Wait 32 | . . . 32 Move 341 | 17 53 51 220 Hop . | . . . . Pick Up . | . . . . Fast Attach . | . . . . Attach . | . . . . Detach . | . . . . Swap . | . . . . Drop . | . . . . Fire 20 | . . . 20 Melee . | . . . . Ram 4 | . . . 4 Kick 119 | . . . 119 Crush 2 | . . . 2 Escape Stasis . | . . . . Rewire . | . . . . Trap . | . . . . Miscellaneous . | . . . . Route ------- -11/Scrapyard -10/Materials -9/Materials -9/Mines (discovered 1 exit: [*Mat]) History --------- Turn | Location | Event 3 | -11/Scrapyard | Discovered new exit (range 16) 10 | -11/Scrapyard | Entered Materials 48 | -10/Materials | Discovered new exit (range 12) 70 | -10/Materials | Entered another Materials area 144 | -9/Materials | Discovered new exit (range 6) 152 | -9/Materials | Entered Mines 156 | -9/Mines | Received a Mining Laser from a helpful Derelict 189 | -9/Mines | YI-UF0 nonchalantly dropped a Grenade Launcher on the ground 494 | -9/Mines | Discovered new exit (range 11) 565 | -9/Mines | Lost 4 parts (1p1n1u1w) 600 | -9/Mines | Core integrity fell below 50% 621 | -9/Mines | Core integrity fell below 20% 661 | -9/Mines | Lost 5 parts (1p2n1u1w) 672 | -9/Mines | Destroyed by YI-UF0 with YI-UF0's Doublenader Last Messages --------------- 00598_ Particle Gun destroyed. 00599_ Kicked G-34 Mercenary. 00605_ Imp. Heat Sink destroyed. 00606_ Kicked G-34 Mercenary. 00611_ Kicked G-34 Mercenary out of the way. 00612_ Kicked G-34 Mercenary. 00614_ Kicked G-34 Mercenary out of the way. 00615_ Kicked G-34 Mercenary. 00620_ G-34 Mercenary destroyed. 00620_ T-07 Excavator destroyed. 00622_ Kicked G-34 Mercenary. 00623_ Kicked G-34 Mercenary out of the way. 00624_ Kicked G-34 Mercenary. 00626_ Kicked G-34 Mercenary out of the way. 00627_ Kicked G-34 Mercenary. 00630_ Aluminum Leg destroyed. 00630_ Lost control of G-47 Trooper. 00630_ Took control of G-34 Mercenary. 00630_ Extracted analysis data for G-34 Mercenary. Map ----- +----------------------------------------------------+ | | | | | | | | | | | | | | | | | | | | | ???????????????????????????????????????????????? | | ???????????????????????????????????????????????? | | ???????????????????????????????????????????????? | | ???????????????????????????????????????????????? | | ???????????????????????????????????????????????? | | ???????????????????????????????????????????????? | | ???????????????????????????????????????????????? | | ???????????????????????????????????????????????? | | ???????????????????????????????????????????????? | | ???????????????????????????????????????????????? | | ?????????????????#####?????????????????????????? | | ?????????????????# ????????????????????????? | | ?????????????????# < ???????????????????????? | | ?????????????????# #??????????????????????? | | ?????????????????# """ # #???????????????????? | | ?????????????????# """ g #???????????????????? | | ?????????????????# #???????????????????? | | ?????????????????# = #???????????????????? | | ???????????###???## g! #???????????????????? | | ???????????# ##?# =# %#???????????????????? | | ???????#???# # ## #%#???????????????????? | | ?????### ### % ? %#???????????????????? | | ?????# | ##%#???????????????????? | | ???? # % %%%#????????????###????? | | ??? #####?????????### ##???? | | ??? # #????????????## ##??? | | ?????### #???????????## #??? | | ???? # % #??????????## % #??? | | ??? #????????### #??? | | ???? ## " # #??????### #??? | | ???????# ##### #?????## % #??? | | ???????### #####????# #?????# ## ##??? | | ?? ?????# ??????????# #?????# ##?###???? | | ????#???????????# #?????##% ######????????? | | ???????????????# %#??????# ##?????????????? | | ???????????????# ########%#??????????????? | | ??????####????## %=% #??????????????? | | ?????## ##???# ## ####??????????????? | | ????## ###?# ## #?????????????????? | | ????# ####$ ### #?????????????????? | +----------------------------------------------------+ Best States ------------- Heat Dissipation 40 Energy Generation 19 Energy Capacity 200 Sight Range 16 Terrain Scan Density 10 Additional Mass Support 6 Evasion (%) 55 Recoil Reduction 2 Item Schematics ----------------- None Robot Schematics ------------------ None Fabricated ------------ Nothing Repaired ---------- Nothing Alien Tech Used ----------------- None Achievements -------------- None Challenges ------------ None Polymind | -11 -10 -9 -9 ---------- Run | Yrd Mat Mat Min Hosts 4 | . 1 . 3 Combat Hostiles 3 | . . . 3 Allies . | . . . . Unique Host Classes 2 | . 1 . 1 Average Host Suspicion 69 | . 40 34 77 Unsuspicious Activity 34 | . 2 . 32 Returns to Shadow . | . . . . Fuzzy Dispatches . | . . . . Protomatter Created 16 | . . . 16 Used 80 | . 5 . 75 Decayed . | . . . . Highest Spend 30 | . 5 . 30 Top 5 Hosts by Kills: G-47 Trooper (-9/Mines: 4) A-02 Transporter (-10/Materials: 1) Game ------ Seed BlastUltimateSpecial Manual? 0 Play Time 00:05:58 Cumulative 185.2 hours Start 2025.05.23 @ 15:12:05 End 2025.05.23 @ 15:15:20 Sessions 1 Manual Loads 0 Difficulty Rogue Special Mode Winter2022/Polymind Game No. 211 Rogue 211 Adventurer 0 Explorer 0 Win Type - Total 1 Types 1/0/0/0/0/0/0/0/0/0 Lore% 71 Gallery% 70 Achievement% 61 Wizard Run 0 Options --------- Layout 1 ASCII 0 Keyboard 0 Movement Numpad Keybinds 0 Fullscreen 1 Font 24/Smallcaps Map View 50x35 Zoom Use 0% Tactical HUD 1 Map Filters NONE Filters NONE Steam 1 RUN: cd061edc-7564-4f62-a671-79ad8b4b01a7